Cogmind - Beta 12 @@@ ROGUE MODE // 2023.07.13 @ 20:00:54 Player: hanzu Result: Destroyed by P-70 Sage with Tesla Rifle Performance ------------- Evolutions (5) 2500 Regions Visited (17) 3400 Robots Destroyed (294) 1470 Value Destroyed (12332) 12332 Prototype IDs (56) 1120 Alien Tech Used (0) 0 Bonus (5681) 5681 TOTAL SCORE: 26503 Bonus ------- High Alert Combat Kills 1953 Follower Combat Kills 783 Entered Garrisons 600 Used RIF Installer 2500 Aligned with FarCom 300 Friendly Fire -455 Cogmind --------- Core Integrity 0/1000 Matter 109/300 Energy 95/100 System Corruption 36% Temperature Cool (0) Movement Core (100) Ox1 Location -5/Factory Parts ------- > --- POWER (2) -------- (None) > --- PROPULSION (4) --- Gyrokinetic Inverter > --- UTILITY (8) ------ Salvage Targeting Computer Improved Transmission Jammer System Shield > --- WEAPON (3) ------- Lance > --- INVENTORY (5) ---- Light Angular Momentum Engine Large Storage Unit KE Penetrator Improved Remote Datajack Peak State ------------ > --- POWER ------------ Light Angular Momentum Engine Light Angular Momentum Engine > --- PROPULSION ------- Heavy Treads Heavy Treads > --- UTILITY ---------- Advanced Heat Sink High-capacity Storage Unit Visual Processing Unit Salvage Targeting Computer Improved Target Analyzer Improved Target Analyzer Improved Medium Armor Plating System Shield > --- WEAPON ----------- Tesla Rifle Heavy Mass Driver > --- INVENTORY -------- Light Fission Core Improved Treads Advanced Heat Sink Advanced Heat Sink Medium Matter Pod Improved Medium Armor Plating Heavy Laser Gatling Laser Proton Cannon Heavy Phase Cannon Gauss Rifle Heavy Machine Gun Heavy Machine Gun KE Penetrator Magnetic Acceleration Cannon Heavy Mass Driver Improved Remote Datajack Improved Plasma Cutter [Rating: 88] Favorites ----------- Power Light Nuclear Core Engine Light Angular Momentum Engine Power Core Light Nuclear Core Reactor Light Quantum Reactor Propulsion Advanced Treads Treads Advanced Treads Wheel Armored Wheel Hover Unit Aerolev Unit Flight Unit Improved VTOL Module Utility Large Storage Unit Device Improved Heat Sink Storage Large Storage Unit Processor Machine Analyzer Hackware Hacking Suite Protection Core Shielding Weapon Gauss Cannon Energy Gun Beamcaster Energy Cannon Cooled Particle Cannon Ballistic Gun Precision Assault Rifle Ballistic Cannon Gauss Cannon Launcher Missile Launcher Special Weapon Remote Datajack Piercing Weapon Lance Special Melee Weapon Improved Datajack Build | -11 -10 -10 -9 -9 -9 -8 -8 -8 -8 -7 -7 -7 -7 -6 -6 -6 -5 ------- Run | Jun Mat Min Mat Min Exi Min Mat Gar Mat Fac Gar Fac Gar Fac Low Low Fac Slots Evolved 10 | . . . 2 . . . 2 . . 2 . . . 2 . . 2 Power 1 | . . . . . . . . . . . . . . . . . 1 Propulsion 2 | . . . . . . . 1 . . . . . . . . . 1 Utility 6 | . . . 2 . . . . . . 2 . . . 2 . . . Weapon 1 | . . . . . . . 1 . . . . . . . . . . Parts Attached 254 | 7 9 3 25 4 2 13 29 8 10 28 15 11 16 9 3 2 60 Power 26 | 1 1 1 2 . . 2 2 . 1 1 1 . 3 1 . . 10 Engine 14 | 1 . . 1 . . . . . 1 1 1 . 1 1 . . 7 Core 10 | . 1 1 1 . . 2 2 . . . . . . . . . 3 Reactor 2 | . . . . . . . . . . . . . 2 . . . . Propulsion 45 | 2 1 . 5 . 1 3 7 3 1 3 3 3 . 2 . . 11 Treads 30 | 2 1 . 2 . 1 3 4 3 1 3 3 3 . . . . 4 Leg . | . . . . . . . . . . . . . . . . . . Wheel 3 | . . . 3 . . . . . . . . . . . . . . Hover 9 | . . . . . . . 3 . . . . . . 1 . . 5 Flight 3 | . . . . . . . . . . . . . . 1 . . 2 Utility 83 | 1 5 1 7 1 . 2 6 1 1 13 5 6 7 5 2 2 18 Device 43 | . 4 . 1 . . 1 2 . 1 9 4 3 2 4 1 2 9 Storage 7 | 1 1 1 2 . . . . . . . . . . . . . 2 Processor 9 | . . . 1 . . . 2 1 . 1 . . . . 1 . 3 Hackware 14 | . . . . . . . 1 . . 3 1 2 5 . . . 2 Protection 10 | . . . 3 1 . 1 1 . . . . 1 . 1 . . 2 Artifact . | . . . . . . . . . . . . . . . . . . Weapon 100 | 3 2 1 11 3 1 6 14 4 7 11 6 2 6 1 1 . 21 Energy Gun 24 | . 1 1 5 2 . 3 6 . 1 1 . . . . . . 4 Energy Cannon 16 | . . . 1 . . . 4 2 2 2 2 . 1 . . . 2 Ballistic Gun 13 | 3 . . . . . 1 1 . 2 1 3 . . . . . 2 Ballistic Cannon 28 | . 1 . 3 . . . 2 . 2 5 . 1 4 1 1 . 8 Launcher 13 | . . . 2 1 . 2 1 2 . . 1 . . . . . 4 Special Weapon 2 | . . . . . . . . . . . . 1 1 . . . . Impact Weapon . | . . . . . . . . . . . . . . . . . . Slashing Weapon . | . . . . . . . . . . . . . . . . . . Piercing Weapon 1 | . . . . . . . . . . . . . . . . . 1 Special Melee Weapon 3 | . . . . . 1 . . . . 2 . . . . . . . Unidentified Prototypes 16 | . . . 3 . . . 5 . . 4 . . 1 1 . . 2 Corrupted Parts 2 | . . . . . . . . . . 1 . . . . . . 1 System Corruption 3 | . . . . . . . . . . 2 . . . . . . 1 Parts Lost 55 | . . 1 5 . . 4 2 . . 1 5 . . 10 . . 27 Power 7 | . . 1 . . . . . . . . 1 . . 1 . . 4 Propulsion 14 | . . . 1 . . 2 1 . . . 2 . . 2 . . 6 Utility 15 | . . . 1 . . 2 . . . 1 1 . . 5 . . 5 Weapon 19 | . . . 3 . . . 1 . . . 1 . . 2 . . 12 Highest Loss Streak 16 | . . 1 2 . . 2 1 . . 1 2 . . 10 . . 16 To Critical Strikes . | . . . . . . . . . . . . . . . . . . Average Slot Usage (%) 92 | . 96 99 97 100 100 98 99 99 99 98 98 99 98 80 21 40 67 Engine 4 | . 11 . 1 11 11 . . . 5 7 7 7 1 . . . 7 Core 3 | . 2 13 9 . . 9 9 9 3 . . . . . . . . Treads 18 | . 28 28 12 11 11 15 20 13 27 23 23 22 23 17 . . 6 Wheel 1 | . . . 8 11 11 6 . . . . . . . . . . . Hover 1 | . . . . . . . 5 13 . . . . . . . . 2 Device 9 | . 11 14 11 11 11 11 11 9 8 7 15 8 4 7 . 13 10 Storage 8 | . 14 14 11 11 11 11 9 9 9 7 7 7 7 5 . . 4 Processor 7 | . . . 11 11 11 11 9 4 9 7 7 7 5 . . 6 12 Hackware 10 | . . . . . . . 5 9 9 20 12 21 22 31 6 6 4 Protection 2 | . . . 9 11 11 9 . 4 . . . . 4 . 6 6 3 Energy Gun 4 | . . 14 11 21 12 20 14 . 2 . . . . . . . . Energy Cannon 4 | . . . 3 . . . 4 8 2 7 8 9 9 . . . 2 Ballistic Gun 3 | . 17 . . . . . 5 . 10 1 6 5 . . . . 1 Ballistic Cannon 6 | . 9 14 6 . . . 2 18 10 10 5 4 8 5 . . 3 Naked Turns . | . . . . . . . . . . . . . . . . . . Heaviest Build 96 | 14 22 32 40 42 42 42 47 47 47 53 53 58 66 62 2 3 96 Greatest Support 149 | 40 40 40 40 12 12 40 60 64 64 66 64 64 64 64 5 5 149 Greatest Overweight (x) 13 | . . . 3 3 3 3 4 1 . . 1 . 1 . . . 13 Average Overweight (x) . | . . . 1 2 3 1 . . . . . . . . . . . Largest Inventory Capacity 20 | 8 10 15 15 15 15 15 15 15 15 15 15 15 15 15 5 5 20 Average Capacity 14 | 6 9 14 14 15 15 15 15 15 15 15 15 15 15 14 5 5 17 Most Carried 20 | 4 10 11 15 15 15 15 15 15 15 15 15 15 15 14 5 5 20 Average Carried 12 | 2 6 9 11 14 14 13 13 14 14 14 14 14 13 12 3 4 11 Final Capacity 15 | 8 10 15 15 15 15 15 15 15 15 15 15 15 15 5 5 5 5 Final Carried 15 | 3 10 10 15 15 15 14 15 14 15 15 15 13 14 4 4 4 4 Class Distribution -------------------- 23% | Mutant 17% | Scavenger-Skirmisher 13% | Hacker-Skirmisher 12% | Scavenger-Mutant 9% | Bothacker-Mutant 8% | Bothacker-Skirmisher 6% | Skirmisher 5% | Hacker-Mutant 4% | Scavenger-Gunner Dominant Class ---------------- Mutant | -10/Materials Mutant | -10/Mines Mutant | -9/Materials Mutant | -9/Mines Mutant | -9/Exiles Scavenger-Mutant | -8/Mines Scavenger-Skirmisher | -8/Materials Scavenger-Mutant | -8/Garrison Scavenger-Skirmisher | -8/Materials Hacker-Skirmisher | -7/Factory Skirmisher | -7/Garrison Bothacker-Skirmisher | -7/Factory Bothacker-Mutant | -7/Garrison Bothacker-Mutant | -6/Factory Mutant | -6/Lower Caves Mutant | -6/Lower Caves Scavenger-Mutant | -5/Factory Resources | -11 -10 -10 -9 -9 -9 -8 -8 -8 -8 -7 -7 -7 -7 -6 -6 -6 -5 ----------- Run | Jun Mat Min Mat Min Exi Min Mat Gar Mat Fac Gar Fac Gar Fac Low Low Fac Matter Collected 7091 | 119 432 351 381 66 . 269 503 99 650 687 571 . 774 267 58 18 1846 Remotely . | . . . . . . . . . . . . . . . . . . Salvage Created 10524 | . 326 371 1438 160 . 554 1360 166 418 719 1439 125 298 342 58 . 2750 Parts 560 | . 21 33 86 10 . 23 50 11 28 35 76 6 13 15 4 . 149 Haulers Intercepted 9 | . 1 . 3 . . . 3 . . . . . . . . . 2 Recyclers Shooed 5 | . 1 1 . . . . . . . . . . . . . . 3 Parts Field Recycled . | . . . . . . . . . . . . . . . . . . Retrieved Matter . | . . . . . . . . . . . . . . . . . . Parts Self-Destructed . | . . . . . . . . . . . . . . . . . . Prevented . | . . . . . . . . . . . . . . . . . . Kills | -11 -10 -10 -9 -9 -9 -8 -8 -8 -8 -7 -7 -7 -7 -6 -6 -6 -5 ------- Run | Jun Mat Min Mat Min Exi Min Mat Gar Mat Fac Gar Fac Gar Fac Low Low Fac Combat Hostiles Destroyed 218 | . 7 15 26 6 . 13 23 6 12 16 36 2 10 6 . . 40 Melee 1 | . . . . . . . . . . . . . . . . . 1 Guns 64 | . 5 9 7 4 . 7 12 . 9 . 3 1 . . . . 7 Cannons 123 | . 2 6 16 . . . 8 4 3 16 26 1 9 5 . . 27 AOE 22 | . . . . 2 . 5 2 2 . . 7 . . 1 . . 3 Classes Destroyed 17 | . 2 3 7 . . . 1 . . 1 . . 2 . 1 . . Worker 26 | . . . 5 . . . 2 . . 2 . . . 1 . . 16 Builder 5 | . . . 1 . . . . . . . . . . . . . 4 Tunneler 2 | . . 2 . . . . . . . . . . . . . . . Hauler 9 | . 1 . 3 . . . 3 . . . . . . . . . 2 Recycler 9 | . . 1 3 . . 1 . . . . . . . 1 . . 3 Mechanic 2 | . . . 1 . . . . . 1 . . . . . . . . Operator 5 | . . . 1 . . . 2 . 1 . . . . . . . 1 Watcher 16 | . . . 5 . . . 4 . 1 . . . . 1 . . 5 Swarmer 54 | . . 11 9 3 . 4 3 3 5 . 8 . 4 . . . 4 Cutter 1 | . . . . . . . . . . . . . 1 . . . . Grunt 95 | . 7 4 8 3 . 8 15 3 7 8 15 . 2 3 . . 12 Brawler 4 | . . . 1 . . 1 . . . . 1 . . . . . 1 Duelist 4 | . . . . . . . . . . . . . 1 3 . . . Sentry 29 | . . . 8 . . . 4 . . 3 7 2 2 . . . 3 Hunter 8 | . . . . . . . 1 . . 1 . . . . . . 6 Programmer 23 | . . . . . . . . . . 4 5 . . . . . 14 Thug 1 | . . . . 1 . . . . . . . . . . . . . Mutant 1 | . . . . . . . . . . . . . . . 1 . . Best Kill Streak 14 | . 2 3 5 3 . 5 4 3 7 3 14 1 3 8 . . 8 Combat Bots Only 14 | . 2 3 5 3 . 4 3 3 6 3 14 1 3 5 . . 5 Max Kills in Single Turn 5 | . 1 1 5 2 . 3 2 3 1 1 3 1 2 2 1 . 4 Gunslinging . | . . . . . . . . . . . . . . . . . . Exploded 3 | . . . . 2 . 3 2 2 . . 3 . . 1 . . 1 Melee 1 | . . . . . . . . . . . . . . . . . 1 Uniques/NPCs Destroyed . | . . . . . . . . . . . . . . . . . . Combat | -11 -10 -10 -9 -9 -9 -8 -8 -8 -8 -7 -7 -7 -7 -6 -6 -6 -5 -------- Run | Jun Mat Min Mat Min Exi Min Mat Gar Mat Fac Gar Fac Gar Fac Low Low Fac Damage Taken 13695 | . 276 289 939 166 . 1167 939 98 665 573 1343 115 674 1583 98 22 4748 Core 2505 | . 56 22 119 40 . 118 137 29 107 69 155 6 62 500 55 18 1012 Absorbed by Shields . | . . . . . . . . . . . . . . . . . . Reduced by Siege Mode 67 | . . . . . . . . . . . . . . . . . 67 Redirected to Shielding 63 | . . . 19 19 . . . . . . . . . . 11 4 10 Regen/Repaired (Parts) 1200 | . 15 . 96 . . . 59 . 163 405 . 427 35 . . . . Core Remaining (%) 56 | 100 . 68 . . . 30 . . 50 . . . 58 . . 32 . Volleys Fired 632 | . 29 31 96 16 . 37 67 19 33 35 63 13 27 26 2 . 138 Largest 3 | . 2 2 2 2 . 2 3 3 3 3 3 3 3 1 1 . 3 Hottest 219 | . 55 100 124 112 . 144 219 163 163 201 208 208 186 75 75 . 178 Shots Fired 1347 | . 58 62 186 32 . 66 200 33 94 99 147 25 63 26 2 . 254 Gun 518 | . 39 31 90 30 . 63 130 . 37 2 38 4 . . . . 54 Cannon 795 | . 19 31 92 . . . 68 31 57 97 103 17 59 23 2 . 196 Launcher 23 | . . . 4 2 . 3 2 2 . . 6 . . . . . 4 Special 11 | . . . . . . . . . . . . 4 4 3 . . . Kinetic 643 | . 58 31 48 . . 17 38 14 84 63 74 7 30 23 2 . 154 Thermal 597 | . . 31 95 30 . 46 160 17 10 29 67 14 29 . . . 69 Explosive 19 | . . . 4 2 . 3 2 2 . . 6 . . . . . . Electromagnetic 77 | . . . 39 . . . . . . 7 . . . . . . 31 Robot Hit Streak 18 | . 9 6 14 7 . 14 10 4 13 18 6 7 15 6 1 . 14 Robot Miss Streak 4 | . 4 2 4 2 . 3 3 3 3 2 3 1 4 1 2 . 3 Penetration Max 1 | . . . . . . . . . . 1 . . . 1 . . 1 Secondary Targets 6 | . . . . 2 . 3 1 . . . . . . . . . . Max Gunslinging Chain 1 | . . . . 1 . 1 1 . . . . . . . . . . Shots Hit Robots 794 | . 39 33 127 22 3 46 122 8 51 58 55 11 35 20 1 . 163 Core Hits 400 | . 16 21 57 12 . 22 51 9 25 23 53 3 10 9 1 . 88 Critical Kills 9 | . . . 1 . . . 1 . 1 . . . 1 . . . 5 Critical Parts Destroyed 1 | . . . . . . . . . . . . . . . . . 1 Critical Strikes 61 | . 1 1 8 1 . 1 12 . 3 2 . . 5 4 . . 23 Burn 20 | . . . 7 1 . 1 11 . . . . . . . . . . Meltdown 4 | . . . 1 . . . 1 . . . . . 1 . . . 1 Destroy 6 | . . . . . . . . . 1 . . . . . . . 5 Blast 29 | . 1 1 . . . . . . 2 2 . . 4 4 . . 15 Corrupt 2 | . . . . . . . . . . . . . . . . . 2 Melee Attacks 12 | . . . . . 3 . . . . 5 . . . . . . 4 Impact . | . . . . . . . . . . . . . . . . . . Slashing . | . . . . . . . . . . . . . . . . . . Piercing 4 | . . . . . . . . . . . . . . . . . 4 Sneak Attacks 5 | . . . . . 3 . . . . 2 . . . . . . . Combat Hostiles . | . . . . . . . . . . . . . . . . . . Follow-up Attacks . | . . . . . . . . . . . . . . . . . . Damage Inflicted 27518 | . 579 564 2817 622 . 1219 2796 318 1306 2001 3106 327 1092 1682 70 . 9019 Guns 6895 | . 352 309 1141 305 . 883 1822 . 427 38 294 65 . . . . 1259 Cannons 17205 | . 227 255 1347 . . . 826 229 879 1963 2074 262 1092 1310 70 . 6671 Explosions 3264 | . . . 329 317 . 336 140 89 . . 738 . . 351 . . 964 Melee 98 | . . . . . . . . . . . . . . . . . 98 Ramming 56 | . . . . . . . 8 . . . . . . 21 . . 27 Kinetic 12643 | . 579 255 604 . . 177 355 121 1151 975 687 92 513 1310 70 . 5754 Thermal 10834 | . . 309 1491 305 . 706 2293 108 155 875 1681 235 579 351 . . 1746 Explosive 2186 | . . . 21 317 . 336 140 89 . . 738 . . . . . 545 Electromagnetic 1701 | . . . 701 . . . . . . 151 . . . . . . 849 Impact . | . . . . . . . . . . . . . . . . . . Slashing . | . . . . . . . . . . . . . . . . . . Piercing 98 | . . . . . . . . . . . . . . . . . 98 Highest Corruption 36 | . . . . . . . . . 3 2 . . . . . . 36 Average Corruption 8 | . . . . . . . . . 2 1 . . . . . . 15 Corruption Purged 6 | . . . . . . . . . . 6 . . . . . . . Corruption Blocked . | . . . . . . . . . . . . . . . . . . Effects 101 | . . . . . . . . . 15 12 . . . . . . 74 Message Errors 25 | . . . . . . . . . 2 4 . . . . . . 19 Matter Fused 21 | . . . . . . . . . 5 2 . . . . . . 14 Heat Flow Errors 13 | . . . . . . . . . 1 2 . . . . . . 10 Energy Discharges 12 | . . . . . . . . . 2 1 . . . . . . 9 Parts Rejected 2 | . . . . . . . . . . . . . . . . . 2 Parts Fused 3 | . . . . . . . . . . . . . . . . . 3 Data Loss (minor) 7 | . . . . . . . . . 4 1 . . . . . . 2 Data Loss (major) 4 | . . . . . . . . . 1 . . . . . . . 3 Misfires 6 | . . . . . . . . . . 2 . . . . . . 4 Alerts 2 | . . . . . . . . . . . . . . . . . 2 Misdirections 2 | . . . . . . . . . . . . . . . . . 2 Weapon Failures 4 | . . . . . . . . . . . . . . . . . 4 Overload Shots 120 | . . . . . . . . . . 26 61 14 19 . . . . Effects 5 | . . . . . . . . . . . 2 1 2 . . . . Energy Bleed 2 | . . . . . . . . . . . 1 . 1 . . . . Heat Surge 1 | . . . . . . . . . . . . 1 . . . . . Short Circuit 2 | . . . . . . . . . . . 1 . 1 . . . . Overflow Damage 1183 | . . . 36 13 . 26 36 . 18 97 125 . 73 70 . . 689 Projectiles 1023 | . . . 3 . . . 28 . 18 97 124 . 73 62 . . 618 Explosions 160 | . . . 33 13 . 26 8 . . . 1 . . 8 . . 71 Melee . | . . . . . . . . . . . . . . . . . . Knockbacks 63 | . 1 2 1 . . . . 1 11 8 . . . 12 . . 27 Impact . | . . . . . . . . . . . . . . . . . . Kinetic 56 | . 1 2 1 . . . . 1 9 7 . . . 10 . . 25 Secondary 7 | . . . . . . . . . 2 1 . . . 2 . . 2 Self-Inflicted Damage 292 | . . . 34 . . 52 . . . . 46 . . 74 . . 86 Shots 6 | . . . 1 . . 1 . . . . 1 . . 1 . . 2 Rammed 9 | . . . . . . . 1 . . . . . . 5 . . 3 Targets Rammed 9 | . . . . . . . 1 . . . . . . 5 . . 3 Kicked . | . . . . . . . . . . . . . . . . . . Crushed . | . . . . . . . . . . . . . . . . . . Highest Temperature 450 | . 2 99 332 24 . 326 388 384 391 344 270 191 317 87 4 . 450 Average Temperature 76 | . 2 36 70 9 . 134 109 127 126 62 36 83 109 29 2 . 43 Received Heat Transfer 3375 | . 156 9 366 45 . 621 369 54 324 168 372 36 144 186 6 . 519 Effects 15 | . . . 3 . . 4 1 1 3 . 2 . 1 . . . . Shutdowns 1 | . . . . . . . . . 1 . . . . . . . . Energy Bleed 5 | . . . 3 . . 1 . . . . . . 1 . . . . Interference 3 | . . . . . . 1 . . . . 2 . . . . . . Matter Decay 2 | . . . . . . 1 . . 1 . . . . . . . . Short Circuit 3 | . . . . . . 1 1 . 1 . . . . . . . . Damage (minor) 1 | . . . . . . . . 1 . . . . . . . . . Siege Activations 4 | . . . . . . . . . . . . . . . . . 4 Total Turns 83 | . . . . . . . . . . . . . . . . . 83 Longest Duration 42 | . . . . . . . . . . . . . . . . . 42 Robots Corrupted 2 | . . . 1 . . . . . . . . . . . . . 1 Combat Hostiles 2 | . . . 1 . . . . . . . . . . . . . 1 Parts Fried 10 | . . . 4 . . . . . . . . . . . . . 6 Impact Corruptions 1 | . . . . . . . . . . . . . . . . . 1 Robots Melted 6 | . . . 2 . . 1 1 . . . . . 1 . . . 1 Combat Hostiles 6 | . . . 2 . . 1 1 . . . . . 1 . . . 1 Parts Melted 23 | . . 1 7 1 . . 8 . . 2 . . 1 . . . 3 Heat Transferred 16972 | . . 703 3382 814 . 1332 4736 148 222 761 1400 200 524 250 . . 2500 Parts Sabotaged 4 | . . . . . . . . . . . . . . . . . 4 Parts Stolen . | . . . . . . . . . . . . . . . . . . Parts Stripped . | . . . . . . . . . . . . . . . . . . Power Chain Reactions 4 | . . . 3 . . . . . . . . . . . . . 1 Missiles Intercepted . | . . . . . . . . . . . . . . . . . . Alert | -11 -10 -10 -9 -9 -9 -8 -8 -8 -8 -7 -7 -7 -7 -6 -6 -6 -5 ------- Run | Jun Mat Min Mat Min Exi Min Mat Gar Mat Fac Gar Fac Gar Fac Low Low Fac Peak Influence 1479 | . 152 290 571 363 . 198 390 704 499 211 1395 837 1479 841 . . 1442 Initial 776 | . . . 23 214 . . 37 219 343 109 22 732 375 776 . . 329 Average 456 | . 54 139 292 332 . 94 237 536 318 85 821 667 995 774 . . 703 Maximum Alert Level 4 | . . 1 2 1 . . 1 3 2 1 4 3 4 3 . . 4 Low Security (%) 35 | 100 100 70 37 . . 100 29 . . 97 12 . . . . . 12 Level 1 25 | . . 29 32 100 . . 70 30 90 2 6 . . . . . 35 Level 2 13 | . . . 30 . . . . 48 9 . 18 60 29 11 . . 3 Level 3 15 | . . . . . . . . 21 . . 32 39 27 88 . . 26 Level 4 10 | . . . . . . . . . . . 29 . 41 . . . 22 Level 5 . | . . . . . . . . . . . . . . . . . . High Security . | . . . . . . . . . . . . . . . . . . Max Security . | . . . . . . . . . . . . . . . . . . Squads Dispatched 45 | . 1 . 3 . . . 3 . 1 13 . 2 . 6 . . 16 Investigation 16 | . 1 . 2 . . . 2 . . 5 . 2 . 1 . . 3 Extermination 10 | . . . . . . . . . . 4 . . . 1 . . 5 Reinforcement 12 | . . . 1 . . . 1 . 1 1 . . . 2 . . 6 Assault 4 | . . . . . . . . . . . . . . 2 . . 2 Garrison 3 | . . . . . . . . . . 3 . . . . . . . Intercept . | . . . . . . . . . . . . . . . . . . Searches Triggered . | . . . . . . . . . . . . . . . . . . Construction Impeded 3 | . . . . . . . . . . . . . . 1 . . 2 Haulers Reinforced 3 | . . . . . . . . . . . . . . . . . 3 Active Scanning Responses . | . . . . . . . . . . . . . . . . . . Cargo Convoy Interrupts 1 | . . . . . . . . . . . . . . . . . 1 Stealth | -11 -10 -10 -9 -9 -9 -8 -8 -8 -8 -7 -7 -7 -7 -6 -6 -6 -5 --------- Run | Jun Mat Min Mat Min Exi Min Mat Gar Mat Fac Gar Fac Gar Fac Low Low Fac Distress Signals 10 | . . . 3 . . . 1 . 3 . . . . 1 . . 2 Communications Jammed . | . . . . . . . . . . . . . . . . . . Distress Signals . | . . . . . . . . . . . . . . . . . . Times Spotted 367 | . 9 16 44 6 . 13 34 11 20 19 39 2 31 29 9 2 83 Peak Tracking Total 12 | . 2 3 6 3 . 4 4 5 9 3 8 1 5 12 8 2 11 Tactical Retreats 32 | . . . 2 . . . 1 1 1 . 2 . 2 4 4 . 15 Traps | -11 -10 -10 -9 -9 -9 -8 -8 -8 -8 -7 -7 -7 -7 -6 -6 -6 -5 ------- Run | Jun Mat Min Mat Min Exi Min Mat Gar Mat Fac Gar Fac Gar Fac Low Low Fac Traps Triggered 11 | . . . 2 . . . . 2 2 1 . . 1 . . . 3 Indirectly . | . . . . . . . . . . . . . . . . . . Trap Hack Attempts . | . . . . . . . . . . . . . . . . . . Triggered . | . . . . . . . . . . . . . . . . . . Disarmed . | . . . . . . . . . . . . . . . . . . Reprogrammed . | . . . . . . . . . . . . . . . . . . Reused . | . . . . . . . . . . . . . . . . . . Traps Extracted . | . . . . . . . . . . . . . . . . . . Installed . | . . . . . . . . . . . . . . . . . . Triggered . | . . . . . . . . . . . . . . . . . . Machines | -11 -10 -10 -9 -9 -9 -8 -8 -8 -8 -7 -7 -7 -7 -6 -6 -6 -5 ---------- Run | Jun Mat Min Mat Min Exi Min Mat Gar Mat Fac Gar Fac Gar Fac Low Low Fac Machines Disabled 39 | . . 1 2 . . . 4 4 1 . 8 . 5 4 . . 10 Max in Single Turn 3 | . . 1 1 . . . 1 1 1 . 2 . 2 2 . . 3 Garrison Access 3 | . . . . . . . . . . 1 . 1 . . . . 1 Garrison Relay 10 | . . . . . . . . 3 . . 4 . 3 . . . . Phase Generator 2 | . . . . . . . . . . . 1 . 1 . . . . Machines Repaired . | . . . . . . . . . . . . . . . . . . Machines Sabotaged . | . . . . . . . . . . . . . . . . . . Overloaded Fab Kills . | . . . . . . . . . . . . . . . . . . Hacking | -11 -10 -10 -9 -9 -9 -8 -8 -8 -8 -7 -7 -7 -7 -6 -6 -6 -5 --------- Run | Jun Mat Min Mat Min Exi Min Mat Gar Mat Fac Gar Fac Gar Fac Low Low Fac Machines Accessed 104 | . 7 . 13 . 2 . 14 1 11 21 4 11 . 6 . . 14 Terminals 59 | . 5 . 9 . . . 9 1 8 10 4 4 . 3 . . 6 Fabricators 5 | . . . . . . . . . . 2 . 1 . 1 . . 1 Repair Stations 14 | . 1 . 1 . . . 1 . 2 4 . 3 . . . . 2 Recycling Units 10 | . 1 . 1 . . . 1 . . 3 . 1 . 1 . . 2 Scanalyzers 8 | . . . 2 . . . 2 . 1 . . . . 1 . . 2 Garrison Access 6 | . . . . . . . 1 . . 2 . 2 . . . . 1 Total Hacks 319 | . 23 . 61 . 5 . 41 2 37 65 5 26 . 19 . . 35 Successful 193 | . 15 . 43 . 5 . 24 2 23 38 3 17 . 13 . . 10 Failed 120 | . 7 . 17 . . . 16 . 13 26 2 8 . 6 . . 25 Catastrophic 19 | . . . 2 . . . . . 4 1 . 2 . 1 . . 9 Database Lockouts 6 | . 1 . 1 . . . 1 . 1 1 . 1 . . . . . Manual 150 | . 21 . 36 . 1 . 21 1 20 28 1 6 . 2 . . 13 Terminals 183 | . 18 . 32 . . . 29 2 25 36 5 12 . 7 . . 17 Fabricators 16 | . . . . . . . . . . 9 . 3 . 1 . . 3 Repair Stations 39 | . 3 . 3 . . . 2 . 8 10 . 6 . . . . 7 Recycling Units 23 | . 2 . 5 . . . 3 . . 5 . 3 . 3 . . 2 Scanalyzers 44 | . . . 21 . . . 6 . 4 . . . . 8 . . 5 Garrison Access 9 | . . . . . . . 1 . . 5 . 2 . . . . 1 Terminal Hacks 64 | . 6 . 8 . 5 . 9 1 9 13 3 5 . 2 . . 3 Record 7 | . . . . . 4 . . . . . . . . 1 . . 2 Part Schematic 5 | . . . . . . . . . . 2 . 2 . 1 . . . Robot Schematic 3 | . . . 2 . . . . . . 1 . . . . . . . Robot Analysis 17 | . 4 . 5 . . . 1 . 2 4 . 1 . . . . . Prototype ID Bank 4 | . . . . . . . 2 . 1 1 . . . . . . . Open Door 1 | . . . . . . . . . . . 1 . . . . . . Branch Access Points 2 | . . . . . . . 1 . 1 . . . . . . . . Machine Index 2 | . . . . . . . . . . 1 . 1 . . . . . Terminal Index 5 | . . . 1 . . . 1 . 1 1 . . . . . . 1 Garrison Index 2 | . . . . . . . . . 1 . . 1 . . . . . Alert Level 1 | . . . . . . . 1 . . . . . . . . . . Unreport Threat 4 | . 2 . . . . . . . 1 1 . . . . . . . Locate Traps 2 | . . . . . . . 1 . . 1 . . . . . . . Surveillance Status 1 | . . . . . . . . . 1 . . . . . . . . Recall Investigation 1 | . . . . . . . 1 . . . . . . . . . . Recall Reinforcements 1 | . . . . . . . . . 1 . . . . . . . . Hauler Manifests 1 | . . . . . . . 1 . . . . . . . . . . Zone Layout 1 | . . . . . . . . . . 1 . . . . . . . Garrison Registry 2 | . . . . . . . . 1 . . 1 . . . . . . Patrol Navigation 1 | . . . . . . . . . . . 1 . . . . . . EX-Prototype ID Bank 1 | . . . . . 1 . . . . . . . . . . . . Fabricator Hacks 8 | . . . . . . . . . . 4 . 1 . 1 . . 2 Network Status 2 | . . . . . . . . . . 1 . . . 1 . . . Load Schematic 4 | . . . . . . . . . . 2 . 1 . . . . 1 Build 2 | . . . . . . . . . . 1 . . . . . . 1 Repair Station Hacks 29 | . 2 . 2 . . . 2 . 6 9 . 6 . . . . 2 Scan Component 16 | . 1 . 1 . . . 1 . 3 5 . 3 . . . . 2 Repair 13 | . 1 . 1 . . . 1 . 3 4 . 3 . . . . . Recycling Unit Hacks 7 | . 1 . 2 . . . . . . 2 . 1 . 1 . . . Process 2 | . . . 1 . . . . . . 1 . . . . . . . Retrieve Matter 1 | . . . 1 . . . . . . . . . . . . . . Retrieve Components 4 | . 1 . . . . . . . . 1 . 1 . 1 . . . Scanalyzer 39 | . . . 19 . . . 6 . 4 . . . . 8 . . 2 Insert Component 19 | . . . 9 . . . 3 . 2 . . . . 4 . . 1 Analyze 20 | . . . 10 . . . 3 . 2 . . . . 4 . . 1 Garrison Access Hacks 6 | . . . . . . . 1 . . 2 . 2 . . . . 1 Unlock Access 3 | . . . . . . . 1 . . 1 . 1 . . . . . Seal Access 3 | . . . . . . . . . . 1 . 1 . . . . 1 Unauthorized Hacks 40 | . 6 . 12 . . . 6 1 4 8 . 2 . 1 . . . Terminals 31 | . 4 . 9 . . . 6 1 4 5 . 2 . . . . . Assimilate 2 | . . . 1 . . . . . 1 . . . . . . . . Botnet 25 | . 3 . 7 . . . 5 1 3 4 . 2 . . . . . Operators 4 | . 1 . 1 . . . 1 . . 1 . . . . . . . Fabricators 2 | . . . . . . . . . . 2 . . . . . . . Prioritize 1 | . . . . . . . . . . 1 . . . . . . . Liberate 1 | . . . . . . . . . . 1 . . . . . . . Repair Stations 2 | . 1 . 1 . . . . . . . . . . . . . . Mechanics 2 | . 1 . 1 . . . . . . . . . . . . . . Recycling Units 5 | . 1 . 2 . . . . . . 1 . . . 1 . . . Reject 1 | . . . 1 . . . . . . . . . . . . . . Recyclers 2 | . . . 1 . . . . . . . . . . 1 . . . Mask 2 | . 1 . . . . . . . . 1 . . . . . . . Scanalyzers . | . . . . . . . . . . . . . . . . . . Garrison Access . | . . . . . . . . . . . . . . . . . . Data Cores Recovered 2 | . . . . . . . 1 . . 1 . . . . . . . Used 1 | . . . . . . . . . . 1 . . . . . . . Hacking Detections 90 | . 5 . 12 . . . 13 1 11 18 2 10 . 5 . . 13 Full Trace Events 18 | . 3 . 2 . . . 2 . . 5 . 2 . 1 . . 3 Feedback Events 3 | . . . . . . . . . . 2 . . . . . . 1 Corruption 3 | . . . . . . . . . . 2 . . . . . . 1 Feedback Blocked . | . . . . . . . . . . . . . . . . . . Robot Schematics Acquired 3 | . . . 2 . . . . . . 1 . . . . . . . Robots Built 1 | . . . . . . . . . . 1 . . . . . . . Authchips 1 | . . . . . . . . . . 1 . . . . . . . Time 40 | . . . . . . . . . . 40 . . . . . . . Total Robot Build Rating 1 | . . . . . . . . . . 1 . . . . . . . Part Schematics Acquired 24 | . . . 9 . . . 3 . 2 2 . 2 . 5 . . 1 Parts Built 1 | . . . . . . . . . . . . . . . . . 1 Authchips . | . . . . . . . . . . . . . . . . . . Time 73 | . . . . . . . . . . . . . . . . . 73 Total Part Build Rating 3 | . . . . . . . . . . . . . . . . . 3 Parts Repaired 13 | . 1 . 1 . . . 1 . 3 4 . 3 . . . . . Time 432 | . 26 . 32 . . . 38 . 114 158 . 64 . . . . . Parts Recycled . | . . . . . . . . . . . . . . . . . . Recycled Matter 237 | . . . 105 . . . . . . 132 . . . . . . . Retrieved Matter 165 | . . . 165 . . . . . . . . . . . . . . Retrieved Components 22 | . 10 . . . . . . . . 7 . 3 . 2 . . . Parts Scanalyzed 19 | . . . 9 . . . 3 . 2 . . . . 4 . . 1 Part Schematics Acquired 19 | . . . 9 . . . 3 . 2 . . . . 4 . . 1 Parts Damaged 2 | . . . . . . . . . 1 . . . . 1 . . . Bothacking | -11 -10 -10 -9 -9 -9 -8 -8 -8 -8 -7 -7 -7 -7 -6 -6 -6 -5 ------------ Run | Jun Mat Min Mat Min Exi Min Mat Gar Mat Fac Gar Fac Gar Fac Low Low Fac Used RIF Installer 5 | . . . . . . . . 2 . . 1 . 2 . . . . Code Merge 2 | . . . . . . . . . . . . . 2 . . . . Command Fork 1 | . . . . . . . . 1 . . . . . . . . . Program Shield 1 | . . . . . . . . . . . 1 . . . . . . Robots Hacked 16 | . . . . . 3 . . . . 3 . 3 4 3 . . . Non-combat 8 | . . . . . 2 . . . . 3 . 3 . . . . . Combat 8 | . . . . . 1 . . . . . . . 4 3 . . . Robot Hacks Applied 18 | . . . . . 3 . . . . 5 . 3 4 3 . . . parse_system 5 | . . . . . 3 . . . . 2 . . . . . . . map_route 1 | . . . . . . . . . . 1 . . . . . . . relay_feed 1 | . . . . . . . . . . 1 . . . . . . . formatsys_low 4 | . . . . . . . . . . 1 . 3 . . . . . formatsys_high 7 | . . . . . . . . . . . . . 4 3 . . . Relay Couplers Released 37 | . . . . . . . . 12 . . 14 . 11 . . . . Machine Destruction 37 | . . . . . . . . 12 . . 14 . 11 . . . . Attached 7 | . . . . . . . . . . 1 . 1 5 . . . . Merged Code Value 63 | . . . . . . . . . . . . . 63 . . . . Fabnet Peak Effective % . | . . . . . . . . . . . . . . . . . . Robots Rewired 3 | . . . 1 . . . . . . . 2 . . . . . . Allies Hacked 1 | . . . . . . . . . . . 1 . . . . . . Hacks Repelled . | . . . . . . . . . . . . . . . . . . Allies | -11 -10 -10 -9 -9 -9 -8 -8 -8 -8 -7 -7 -7 -7 -6 -6 -6 -5 -------- Run | Jun Mat Min Mat Min Exi Min Mat Gar Mat Fac Gar Fac Gar Fac Low Low Fac Total Allies 25 | . . . 1 2 . . . . 1 5 4 3 6 3 . . . Largest Group 5 | . . . 1 2 1 . . . 1 4 4 5 5 4 . . . Highest-Rated Group 229 | . . . 15 53 22 . . . 10 74 168 89 229 97 . . . Highest-Rated Ally 80 | . . . 15 31 22 . . . 10 26 80 26 80 32 . . . Total Orders 47 | . . . . . . . . . . 2 14 5 21 5 . . . STAY 15 | . . . . . . . . . . 1 6 1 6 1 . . . FOLLOW 20 | . . . . . . . . . . 1 7 1 10 1 . . . AID 8 | . . . . . . . . . . . . 3 4 1 . . . TUNNEL 1 | . . . . . . . . . . . . . 1 . . . . EXPLORE 2 | . . . . . . . . . . . 1 . . 1 . . . RETURN 1 | . . . . . . . . . . . . . . 1 . . . Ally Attacks 118 | . . . 3 . . . . . . 24 26 . 51 14 . . . Total Damage 3301 | . . . 73 . . . . . . 252 990 . 1459 527 . . . Kills 31 | . . . 1 . . . . . . 3 6 . 17 4 . . . Allies Corrupted . | . . . . . . . . . . . . . . . . . . Allies Melted . | . . . . . . . . . . . . . . . . . . Intel | -11 -10 -10 -9 -9 -9 -8 -8 -8 -8 -7 -7 -7 -7 -6 -6 -6 -5 ------- Run | Jun Mat Min Mat Min Exi Min Mat Gar Mat Fac Gar Fac Gar Fac Low Low Fac Robot Analysis Total 17 | . 4 . 5 . . . 1 . 2 4 . 1 . . . . . Derelict Logs Recovered 3 | . . 1 . . . . . . . . . . . . 1 1 . Drone Launches 3 | . . . . . . . . . . . 1 . . 2 . . . Drone Recoveries 3 | . . . . . . . . . . . 1 . . 2 . . . Exploration | -11 -10 -10 -9 -9 -9 -8 -8 -8 -8 -7 -7 -7 -7 -6 -6 -6 -5 ------------- Run | Jun Mat Min Mat Min Exi Min Mat Gar Mat Fac Gar Fac Gar Fac Low Low Fac Turns Passed 20918 | 79 831 1085 1867 230 377 686 2333 683 938 2896 1705 1023 2040 555 106 107 3377 Spaces Moved 11641 | 46 402 611 930 134 273 331 1192 467 437 1613 941 559 1011 271 258 251 1914 Core 475 | 10 . . . . . . . . . . . . . 29 . . 436 Treads 7992 | 36 402 611 238 . . 153 785 214 437 1613 941 559 1011 214 . . 778 Legs . | . . . . . . . . . . . . . . . . . . Wheels 1277 | . . . 692 134 273 178 . . . . . . . . . . . Hover 1107 | . . . . . . . 407 253 . . . . . 11 . . 436 Flight 790 | . . . . . . . . . . . . . . 17 258 251 264 Fastest Speed 35 | 50 160 160 100 120 135 120 102 102 153 145 153 150 153 35 35 35 35 Average Speed 141 | 136 160 160 135 122 135 149 141 125 153 150 153 156 182 130 35 35 126 Slowest Speed 700 | 160 160 160 160 135 135 240 290 153 153 153 237 158 233 153 35 35 700 Overloaded Moves . | . . . . . . . . . . . . . . . . . . Propulsion Burnouts . | . . . . . . . . . . . . . . . . . . Robots Hopped 5 | . . . . . . . . . . . . . . . . . 5 Cave-ins Triggered . | . . . . . . . . . . . . . . . . . . Exploration Rate (%) 55 | 4 69 98 74 29 64 74 79 50 48 35 96 15 77 68 49 33 43 Regions Visited 17 Branch Regions 6 Pre-discovered Areas 2 | . . . . . 1 . . . . . . . . . . 1 . Known Exits Taken 8 | . . . 1 1 1 1 1 . 1 1 . 1 . . . . . Unknown Exits Taken 6 | 1 1 1 . . . . . . . . . . . 1 1 1 . Scrap Searched 5 | . . 2 . 1 . 1 . . . . . . . . . 1 . Spaces Dug 40 | . . . . . . . . 6 6 7 2 6 . . . . 13 Terrain Destroyed 517 | . . . 40 9 . 33 23 21 24 30 113 10 79 34 1 . 100 Melee . | . . . . . . . . . . . . . . . . . . Projectile 187 | . . . . . . . 18 . 24 30 27 10 8 8 1 . 61 AOE 330 | . . . 40 9 . 33 5 21 . . 86 . 71 26 . . 39 Terrain Rammed . | . . . . . . . . . . . . . . . . . . Walls Destroyed . | . . . . . . . . . . . . . . . . . . Machines Disabled . | . . . . . . . . . . . . . . . . . . Actions | -11 -10 -10 -9 -9 -9 -8 -8 -8 -8 -7 -7 -7 -7 -6 -6 -6 -5 --------- Run | Jun Mat Min Mat Min Exi Min Mat Gar Mat Fac Gar Fac Gar Fac Low Low Fac Total 14927 | 63 532 658 1354 169 279 454 1707 536 648 2008 1085 691 1166 437 271 269 2600 Wait 1844 | . 70 5 243 8 . 61 341 10 147 293 25 89 72 113 2 15 350 Move 11614 | 45 401 610 929 133 272 330 1191 466 436 1612 939 558 1009 270 257 250 1906 Hop 3 | . . . . . . . . . . . . . . . . . 3 Pick Up 294 | 10 16 5 38 4 1 8 42 3 13 21 16 9 15 5 4 2 82 Fast Attach . | . . . . . . . . . . . . . . . . . . Attach 151 | 6 3 1 14 1 . 5 13 4 5 9 11 4 5 9 3 2 56 Detach 20 | . . . . . . . . . . . 2 . 2 2 1 . 13 Swap 105 | 1 6 2 12 3 2 8 16 4 5 19 4 7 11 . . . 5 Drop 188 | 1 7 4 21 4 1 5 36 4 9 13 11 8 17 5 2 . 40 Fire 632 | . 29 31 96 16 . 37 67 19 33 35 63 13 27 26 2 . 138 Melee 12 | . . . . . 3 . . . . 5 . . . . . . 4 Ram 6 | . . . . . . . . . . . . . . 4 . . 2 Kick . | . . . . . . . . . . . . . . . . . . Crush 3 | . . . . . . . 1 . . . . . . 1 . . 1 Escape Stasis 28 | . . . . . . . . 26 . . . . 2 . . . . Rewire 27 | . . . 1 . . . . . . 1 14 3 6 2 . . . Trap . | . . . . . . . . . . . . . . . . . . Miscellaneous . | . . . . . . . . . . . . . . . . . . Route ------- -11/Junkyard -10/Materials (discovered 2 exits: *Mat / [*Min]) -10/Mines (discovered 2 exits: *Mat x2) -9/Materials (discovered 4 exits: *Mat x2 / *Min x2) -9/Mines -9/Exiles -8/Mines -8/Materials (discovered 3 exits: *Fac x2 / Gar) -8/Garrison (discovered 3 exits: *Mat x3) -8/Materials -7/Factory (discovered 4 exits: *Fac x2 / [*Sto] / Gar) -7/Garrison (discovered 3 exits: *Fac x3) -7/Factory (discovered 2 exits: *Fac / Gar) -7/Garrison (discovered 2 exits: *Fac x2) -6/Factory (discovered 5 exits: *Fac x2 / [*Low x2] / [*Ext]) -6/Lower Caves -6/Lower Caves -5/Factory History --------- Turn | Location | Event 10 | -11/Junkyard | Discovered new exit (range 16) 80 | -11/Junkyard | Entered Materials 284 | -10/Materials | Discovered new exit (range 16) 300 | -10/Materials | Build established: Mutant 462 | -10/Materials | Repaired Heat Sink 565 | -10/Materials | Discovered new exit (range 15) 879 | -10/Materials | Central database locked down 911 | -10/Materials | Entered Mines 1019 | -10/Mines | Discovered new exit (range 9) 1149 | -10/Mines | Learned Materials emergency access door positions 1267 | -10/Mines | Discovered new exit (range 6) 1996 | -10/Mines | Entered Materials 1996 | -9/Materials | Evolved 2 slots: Utility x2 2691 | -9/Materials | Repaired Med. Armor Plating 2846 | -9/Materials | Discovered new exit (range 4) 2856 | -9/Materials | Identified exit to Mines 2896 | -9/Materials | Discovered new exit (range 15) 3195 | -9/Materials | Discovered exit to Mines (range 15) 3369 | -9/Materials | Central database locked down 3420 | -9/Materials | Discovered new exit (range 13) 3863 | -9/Materials | Entered Mines 4083 | -9/Mines | Deemed a non-threat by the Exiles lab entrance 4084 | -9/Mines | Discovered new exit (range 5) 4088 | -9/Mines | Identified exit to Exiles 4093 | -9/Mines | Entered Exiles 4093 | -9/Exiles | Accompanied by 1 ally 4130 | -9/Exiles | Met 8R-AWN 4157 | -9/Exiles | Met EX-HEX 4211 | -9/Exiles | Met EX-DEC 4248 | -9/Exiles | Learned location of Zion (-7) 4271 | -9/Exiles | Met EX-BIN 4290 | -9/Exiles | Aligned with FarCom system 4291 | -9/Exiles | Given EX-Vault access code 4324 | -9/Exiles | Opened EX-Vault 4338 | -9/Exiles | Found Supersonic Drone Bay 4366 | -9/Exiles | Warned to stay clear of 0b10 Research branches 4453 | -9/Exiles | Discovered new exit (range 14) 4468 | -9/Exiles | Identified exit to Mines 4470 | -9/Exiles | Left Exiles lab with Supersonic Drone Bay 4470 | -9/Exiles | Entered Mines 4495 | -8/Mines | Core integrity fell below 50% 4849 | -8/Mines | Build established: Scavenger-Mutant 5141 | -8/Mines | Discovered new exit (range 11) 5154 | -8/Mines | Identified exit to Materials 5156 | -8/Mines | Entered Materials 5156 | -8/Materials | Evolved 2 slots: Propulsion x1, Weapon x1 5481 | -8/Materials | Build established: Scavenger-Skirmisher 6225 | -8/Materials | Central database locked down 6545 | -8/Materials | Discovered new exit (range 3) 6723 | -8/Materials | Discovered new exit (range 16) 7064 | -8/Materials | Repaired Missile Launcher 7253 | -8/Materials | Build established: Skirmisher 7286 | -8/Materials | Identified exit to Factory 7488 | -8/Materials | Identified exit to Garrison 7489 | -8/Materials | Entered Garrison 7516 | -8/Garrison | Triggered checkpoint 7529 | -8/Garrison | Garrison Relay disabled 7587 | -8/Garrison | Discovered new exit (range 55) 7587 | -8/Garrison | Discovered new exit (range 61) 7587 | -8/Garrison | Discovered new exit (range 32) 7626 | -8/Garrison | Triggered checkpoint 7675 | -8/Garrison | Warlord forces raided the area 7710 | -8/Garrison | Installed Relay Interface Framework 7726 | -8/Garrison | Triggered checkpoint 7742 | -8/Garrison | Triggered checkpoint 7800 | -8/Garrison | Expanded RIF knowledge: Command Fork 7817 | -8/Garrison | Triggered checkpoint 7825 | -8/Garrison | Garrison Relay disabled 7940 | -8/Garrison | Triggered checkpoint 7964 | -8/Garrison | Triggered checkpoint 8026 | -8/Garrison | Garrison Relay disabled 8123 | -8/Garrison | Build established: Scavenger-Mutant 8172 | -8/Garrison | Entered Materials 8223 | -8/Materials | Repaired Hvy. Particle Cannon 8344 | -8/Materials | Central database locked down 8534 | -8/Materials | Build established: Scavenger-Skirmisher 8680 | -8/Materials | Repaired Imp. Heat Sink 8726 | -8/Materials | Repaired Adv. Treads 9083 | -8/Materials | Discovered exit to Factory (range 11) 9110 | -8/Materials | Entered Factory 9110 | -7/Factory | Evolved 2 slots: Utility x2 9402 | -7/Factory | Build established: Hacker-Skirmisher 9501 | -7/Factory | Discovered new exit (range 6) 9511 | -7/Factory | Identified exit to Factory 9852 | -7/Factory | Repaired Arm. Treads? 9890 | -7/Factory | Build established: Hacker-Mutant 10210 | -7/Factory | Build established: Hacker-Skirmisher 10796 | -7/Factory | Repaired System Restoration Module 10835 | -7/Factory | Repaired Adv. Treads 11061 | -7/Factory | Discovered new exit (range 6) 11163 | -7/Factory | Garrison activated, responded to threat 11245 | -7/Factory | Repaired Adv. Treads? 11290 | -7/Factory | Fabricated O-16 Technician? 11336 | -7/Factory | Discovered exit to Factory (range 15) 11491 | -7/Factory | Central database locked down 12002 | -7/Factory | Identified exit to Garrison 12006 | -7/Factory | Entered Garrison 12006 | -7/Garrison | Accompanied by 2 allies 12050 | -7/Garrison | Triggered checkpoint 12187 | -7/Garrison | Garrison Relay disabled 12217 | -7/Garrison | Phase Generator disabled 12306 | -7/Garrison | Triggered checkpoint 12308 | -7/Garrison | Triggered checkpoint 12328 | -7/Garrison | Triggered checkpoint 12381 | -7/Garrison | Destroyed 14 combat bots 12639 | -7/Garrison | Triggered checkpoint 12678 | -7/Garrison | Found embedded Infiltrators 12698 | -7/Garrison | Garrison Relay disabled 12829 | -7/Garrison | Discovered new exit (range 10) 12855 | -7/Garrison | P-60 Hacker assimilated allied 6C-GPO(x) 13050 | -7/Garrison | Build established: Skirmisher 13076 | -7/Garrison | Triggered checkpoint 13144 | -7/Garrison | Discovered new exit (range 13) 13204 | -7/Garrison | Triggered checkpoint 13317 | -7/Garrison | Garrison Relay disabled 13434 | -7/Garrison | Discovered new exit (range 19) 13434 | -7/Garrison | Discovered new exit (range 44) 13434 | -7/Garrison | Discovered new exit (range 63) 13456 | -7/Garrison | Triggered checkpoint 13523 | -7/Garrison | Expanded RIF knowledge: Program Shield 13574 | -7/Garrison | Garrison Relay disabled 13711 | -7/Garrison | Entered Factory 13711 | -7/Factory | Accompanied by 2 allies 13892 | -7/Factory | Build established: Bothacker-Skirmisher 14090 | -7/Factory | Central database locked down 14258 | -7/Factory | Discovered exit to Factory (range 5) 14343 | -7/Factory | Repaired Broken Adv. Treads 14411 | -7/Factory | Repaired Arm. Treads 14489 | -7/Factory | Repaired Adv. Treads 14733 | -7/Factory | Identified exit to Garrison 14734 | -7/Factory | Entered Garrison 14734 | -7/Garrison | Accompanied by 5 allies 14747 | -7/Garrison | Phase Generator disabled 15028 | -7/Garrison | Garrison Relay disabled 15044 | -7/Garrison | Triggered checkpoint 15045 | -7/Garrison | Found embedded Infiltrators 15317 | -7/Garrison | Build established: Bothacker-Mutant 15346 | -7/Garrison | Triggered checkpoint 15374 | -7/Garrison | Triggered checkpoint 15468 | -7/Garrison | Discovered exit to Factory (range 9) 15626 | -7/Garrison | Build established: Bothacker-Skirmisher 15647 | -7/Garrison | Triggered checkpoint 15954 | -7/Garrison | Expanded RIF knowledge: Code Merge 16022 | -7/Garrison | Triggered checkpoint 16037 | -7/Garrison | Garrison Relay disabled 16299 | -7/Garrison | Build established: Bothacker-Mutant 16374 | -7/Garrison | Discovered exit to Factory (range 3) 16398 | -7/Garrison | Triggered checkpoint 16409 | -7/Garrison | Expanded RIF knowledge: Code Merge 16436 | -7/Garrison | Garrison Relay disabled 16774 | -7/Garrison | Entered Factory 16774 | -6/Factory | Accompanied by 4 allies 16774 | -6/Factory | Evolved 2 slots: Utility x2 16790 | -6/Factory | Discovered new exit (range 174) 16795 | -6/Factory | Discovered new exit (range 175) 16797 | -6/Factory | Discovered new exit (range 157) 16804 | -6/Factory | Discovered new exit (range 85) 16808 | -6/Factory | Discovered new exit (range 39) 17124 | -6/Factory | First assault squad dispatched 17313 | -6/Factory | Core integrity fell below 50% 17329 | -6/Factory | Entered Lower Caves 17349 | -6/Lower Caves | Attracted the attention of an 0b10 checkpoint 17353 | -6/Lower Caves | Learned Factory security intel 17358 | -6/Lower Caves | Lost 10 parts (1p2n5u2w) 17376 | -6/Lower Caves | Encountered a Warlord checkpoint 17404 | -6/Lower Caves | Discovered new exit (range 10) 17435 | -6/Lower Caves | Entered another Lower Caves area 17453 | -6/Lower Caves | Discovered new exit (range 2) 17542 | -6/Lower Caves | Entered Factory 17542 | -5/Factory | Evolved 2 slots: Power x1, Propulsion x1 17837 | -5/Factory | Build established: Scavenger-Mutant 18660 | -5/Factory | Build established: Scavenger-Skirmisher 19232 | -5/Factory | System corruption reached 10% 19235 | -5/Factory | Fabricated Imp. Datajack (x1) 19478 | -5/Factory | Found Prototype Launcher 19519 | -5/Factory | Build established: Scavenger-Gunner 20174 | -5/Factory | Cargo convoy interrupted 20242 | -5/Factory | First assault squad dispatched 20281 | -5/Factory | Identified Tesla Bomb Launcher 20312 | -5/Factory | Lost 16 parts (3p2n3u8w) 20564 | -5/Factory | Core integrity fell below 50% 20709 | -5/Factory | System corruption reached 30% 20836 | -5/Factory | Core integrity fell below 20% 20883 | -5/Factory | Lost 6 parts (1p2n1u2w) 20919 | -5/Factory | Destroyed by P-70 Sage with Tesla Rifle Last Messages --------------- 20841_ P-70 Sage resets P-70 Sage, system corruption cleaned. 20842_ ALERT: Significant disruption in Zone 2K, assault force dispatched. 20842_ U-05 Engineer lays Concrete. 20849_ P-70 Sage resets M-28 Smith, system corruption cleaned. 20852_ Adv. Cooling System destroyed. 20856_ M-28 Smith repairs Antigrav System. 20856_ Triggered Tesla Bomb Trap. 20856_ A bubble of electromagnetic force engulfs the area. 20856_ Tesla Bomb Trap short circuited. 20856_ A bubble of electromagnetic force engulfs the area. 20863_ K-01 Serf cleans the Neutrino Reactor. 20882_ K-01 Serf cleans the Terminal. 20885_ Dropped Imp. Proton Missile Launcher. 20886_ Acquired KE Penetrator. 20887_ K-01 Serf cleans the Terminal. 20893_ :ZJ4A%9IOYTRFM4FMP8|3 20896_ Acquired Lance. 20908_ JQIA MLA% BFEXRQ:PN H%I&P A/D 20909_ P-70 Sage destroyed. 20912_ Acquired 41 matter. Map ----- +----------------------------------------------------+ | | | | | | | | | | | | | | | | | | | | | | | | | | | | | | | | | ?????????????????#########??????#????????????????? | | ?????????????? ? ? #? ?????????????????? | | ?????????????# """ """ """ # ?????????????????? | | ?????????????# """ """ """ # ??????????????????? | | ?????????????# """ """ """ +???????????????????? | | ?????????????# #???????????????????? | | ?????????????# """ /* """ #???????????????????? | | ?????????????# """ // """ !#???????????????????? | | ?????????????# """ / """ #???????????????????? | | ?????????????# @p #???????????????????? | | ?????????????# !!|[ * !#???????????????????? | | ?????????????##########+#############+###????????? | | ???????? [ ! [ +????????? | | ???????? #????????? | | ???????? """" """" """" """" """"w #????????? | | ??????????????"""" """" """" """" """" #????????? | | ???????????????""" """" """" """" """" #????????? | | ????????????????"" """" """" """" """" #????????? | | ?????????????????"?"""" """" """" """" #####+#### | | ???????????????""" """" """" """" """" | | ?????????????? | | ?????????????? | | ?????????????? ] | | ?????????????? | | ???????????????##+#########""" """### ########### | | ??????????????????????????#"""T"""#?# #?????????# | | ??????????????????????????#########?#+#?????????# | | ????????????????????????????? ?????? ??????????# | | ????????????????????????????? ????? "??????????# | | ?????????????????????????????? ???? "??????????# | | ?????????????????????????????? ??? "??????????# | | ??????????????????????????????? ????####?# | | ??????????????????????????????? """ """?###T ### | | ???????????????????????????????? """ ""??# | +----------------------------------------------------+ Best States ------------- Heat Dissipation 89 Energy Generation 31 Energy Capacity 500 Matter Stores 300 Matter Capacity 300 Sight Range 18 Robot Scan Range 15 Terrain Scan Density 10 ECM Strength 1 Jamming Range 14 Additional Mass Support 9 Armor Coverage 450 Core Shielding 20 Propulsion Shielding 33 Phase Shifting 15 Evasion (%) 63 Target Analysis 9 Core Analysis 6 Recoil Reduction 4 Kinecelleration 40 Salvage Targeting 1 Offensive Hacking 22 Defensive Hacking 10 Relay Coupler Types 4 Relay Coupler Value 154 Authchip Count 1 Item Schematics ----------------- Datajack | -9/Materials | Scanalyzed Grenade Launcher | -9/Materials | Scanalyzed Lgt. Nuclear Core | -9/Materials | Scanalyzed Imp. Heat Sink | -9/Materials | Scanalyzed Lrg. Storage Unit | -9/Materials | Scanalyzed Hcp. Matter Pod | -9/Materials | Scanalyzed Lgt. Treads | -9/Materials | Scanalyzed Lgt. Armor Plating | -9/Materials | Scanalyzed Adv. Beam Cannon | -9/Materials | Scanalyzed Hacking Suite | -8/Materials | Scanalyzed Machine Analyzer | -8/Materials | Scanalyzed Imp. Signal Interpreter | -8/Materials | Scanalyzed EM Pulse Cannon | -8/Materials | Scanalyzed Imp. Datajack | -8/Materials | Scanalyzed Angular Momentum Engine | -7/Factory | Hacked Fission Core | -7/Factory | Hacked Hvy. Mass Driver | -7/Factory | Hacked Med. Treads | -7/Factory | Hacked System Restoration Module | -6/Factory | Scanalyzed Imp. Deuterium Engine | -6/Factory | Scanalyzed Imp. Cooling System | -6/Factory | Scanalyzed Matter Compressor | -6/Factory | Scanalyzed Variable Charge Gun | -6/Factory | Hacked Hcp. Storage Unit | -5/Factory | Scanalyzed Robot Schematics ------------------ O-16 Technician | -9/Materials | Hacked M-13 Machinist | -9/Materials | Hacked X-57 Shotgunner | -7/Factory | Hacked Fabricated ------------ O-16 Technician | x1 | -7/Factory | Authchip Imp. Datajack | x1 | -5/Factory Alien Tech Used ----------------- None Achievements -------------- None Challenges ------------ None Game ------ Seed ConstructMetafiberTearclaws Manual? 0 Play Time 03:07:16 Cumulative 142.4 hours Start 2023.07.13 @ 16:44:49 End 2023.07.13 @ 20:00:54 Sessions 1 Manual Loads 0 Difficulty Rogue Special Mode None Game No. 128 Rogue 128 Adventurer 0 Explorer 0 Win Type - Total 1 Types 1/0/0/0/0/0/0/0/0 Lore% 48 Gallery% 63 Achievement% 51 Wizard Run 0 Options --------- ASCII 0 Keyboard 0 Movement Numpad Keybinds 0 Fullscreen 2 Font 18/Smallcaps Map View 76x50 Tactical HUD 1 Map Filters NONE Filters NONE Steam 1 RUN: 13703892-5047-4e95-9941-dba80e26906c